bitfinex/quotes_SOLUSD_20260202
["timestamp","ask_amount","ask_price","bid_price","bid_amount"]
[1769994541301,3.84092947,101.86,101.84,9.81926454]
[1769994541505,43.13630162,101.88,101.84,3.83065672]
[1769994541691,43.13630162,101.88,101.82,3.83065672]
[1769994541692,15.87630162,101.87,101.82,3.83065672]
[1769994542021,12.03537215,101.87,101.83,9.81978161]
[1769994542223,12.03537215,101.85,101.82,3.83065672]
[1769994542392,12.03537215,101.84,101.81,9.82173014]
[1769994542727,12.03537215,101.84,101.81,9.82183983]
[1769994543252,12.03537215,101.84,101.8,13.65342427]
[1769994543519,3.84092947,101.85,101.76,3.83065672]
[1769994543520,3.84092947,101.8,101.76,3.83065672]
[1769994543744,12.03537215,101.77,101.74,9.82896571]
[1769994543894,12.03537215,101.76,101.73,9.82961041]
[1769994544097,12.03537215,101.76,101.72,0.1]
[1769994544098,15.87630162,101.75,101.72,0.1]
[1769994544412,3.84092947,101.73,101.69,9.83322269]
[1769994544600,12.03537215,101.73,101.68,15.96602887]
[1769994544913,12.03537215,101.71,101.68,9.93453174]
[1769994545119,12.03537215,101.71,101.68,9.93466955]
[1769994545317,12.03537215,101.7,101.68,0.1]
[1769994545500,12.03537215,101.69,101.68,0.1]
[1769994545702,3.84092947,101.71,101.68,0.1]
[1769994545902,3.84092947,101.74,101.69,3.83065672]
[1769994546102,25.70792992,101.72,101.68,0.1]
[1769994546424,12.03537215,101.69,101.68,0.1]
[1769994546720,3.84092947,101.68,101.64,9.83858825]
[1769994546919,3.84092947,101.68,101.58,0.3174703]
[1769994546920,12.31969529,101.65,101.58,4.14812702]
[1769994547137,12.03537215,101.66,101.61,3.83065672]
[1769994547425,0.28432314,101.67,101.63,3.83065672]
[1769994547602,39.31537215,101.69,101.63,15.86602887]
[1769994547801,43.13797784,101.69,101.64,12.03537215]
[1769994548117,12.03537215,101.67,101.63,13.67016927]
[1769994548308,15.85797784,101.65,101.59,3.92862463]
[1769994548507,12.03537215,101.64,101.6,9.84236938]
[1769994548703,27.28,101.67,101.61,3.92862463]
[1769994548927,1.25558961,101.7,101.65,3.92862463]
[1769994549221,3.82260569,101.71,101.64,15.96399678]
[1769994549433,12.03537215,101.69,101.64,3.92862463]
[1769994549595,12.03537215,101.68,101.64,3.92862463]
[1769994549923,12.03537215,101.7,101.65,15.96399678]
[1769994550116,25.69017228,101.71,101.66,12.03537215]
[1769994550315,3.82260569,101.71,101.67,12.03537215]
[1769994550513,4.27527085,101.75,101.69,15.96399678]
[1769994550514,12.03537215,101.74,101.69,15.96399678]
[1769994550832,15.85797784,101.73,101.68,12.03537215]
[1769994551125,16.00013941,101.72,101.67,3.92862463]
[1769994551327,15.85797784,101.71,101.65,21.87285242]
[1769994551535,12.03537215,101.68,101.63,3.92862463]
[1769994551826,12.03537215,101.66,101.63,13.76791025]
[1769994552025,12.03537215,101.67,101.63,13.76791025]
[1769994552228,12.03537215,101.68,101.64,3.92862463]
[1769994552403,12.03537215,101.66,101.62,13.76888944]
[1769994552605,12.03537215,101.67,101.63,9.83956891]
[1769994552809,39.33537215,101.7,101.66,3.92862463]
[1769994553026,39.33537215,101.7,101.64,3.92862463]
[1769994553327,12.03537215,101.69,101.64,15.96399678]
[1769994553625,25.68961725,101.72,101.67,12.03537215]
[1769994553930,12.03537215,101.71,101.66,15.96399678]
[1769994554222,25.68961725,101.72,101.67,25.79973987]
[1769994554426,13.6542451,101.72,101.68,12.03537215]
[1769994554600,25.68961725,101.72,101.67,25.79973987]
[1769994554802,12.03537215,101.71,101.67,3.92862463]
[1769994555012,15.85797784,101.7,101.66,9.83638991]
[1769994555428,12.03537215,101.69,101.65,13.76600742]
[1769994555630,12.03537215,101.68,101.65,3.92862463]
[1769994555846,3.82260569,101.65,101.58,0.3174703]
[1769994556140,12.03537215,101.64,101.59,3.92862463]
[1769994556307,6.24088466,101.66,101.6,3.92862463]
[1769994556508,12.03537215,101.63,101.6,3.92862463]
[1769994556937,12.03537215,101.61,101.58,4.24609493]
[1769994557139,12.03537215,101.6,101.58,4.24609493]
[1769994557434,12.03537215,101.63,101.59,3.92862463]
[1769994557808,12.03537215,101.64,101.6,3.92862463]
[1769994558126,12.03537215,101.62,101.6,3.92862463]
[1769994558426,12.03537215,101.65,101.6,3.92862463]
[1769994558757,12.03537215,101.65,101.61,3.92862463]
[1769994559036,39.33537215,101.69,101.65,3.92862463]
[1769994559330,12.03537215,101.72,101.67,3.92862463]
[1769994559519,12.03537215,101.73,101.68,15.96399678]
[1769994559726,21.86434797,101.74,101.7,3.92862463]
[1769994559913,12.03537215,101.72,101.68,3.92862463]
[1769994560117,12.03537215,101.7,101.66,3.92862463]
[1769994560514,12.03537215,101.69,101.66,3.92862463]
[1769994560711,12.03537215,101.67,101.64,3.92862463]
[1769994560928,12.03537215,101.66,101.64,3.92862463]
[1769994561136,12.03537215,101.66,101.63,13.76760323]
[1769994561425,12.03537215,101.66,101.6,12.03537215]
[1769994561629,3.82260569,101.68,101.6,3.92862463]
[1769994561630,4.10692883,101.68,101.6,3.92862463]
[1769994561819,12.03537215,101.63,101.6,3.92862463]
[1769994562415,12.03537215,101.61,101.58,4.24609493]
[1769994562629,12.03537215,101.6,101.58,4.24609493]
[1769994563019,12.03537215,101.61,101.58,14.08995701]
[1769994563230,12.03537215,101.6,101.58,0.3174703]
[1769994563732,12.03537215,101.59,101.58,0.3174703]
[1769994564112,12.03537215,101.59,101.57,2.47215037]
[1769994564313,12.03537215,101.59,101.53,24.62174158]
[1769994564314,12.03537215,101.58,101.54,3.92862463]
[1769994564628,12.03537215,101.58,101.54,13.77680234]
[1769994564831,12.03537215,101.59,101.55,3.92862463]
[1769994565128,12.03537215,101.61,101.57,3.92862463]
[1769994565334,21.87694589,101.61,101.57,3.92862463]
[1769994565530,21.87639704,101.62,101.58,3.92862463]
[1769994565924,12.03537215,101.63,101.59,3.92862463]
[1769994566120,12.03537215,101.62,101.59,3.92862463]
[1769994566512,28.41922119,101.64,101.57,13.77405142]
[1769994566729,12.03537215,101.62,101.58,3.92862463]
[1769994567639,15.85797784,101.64,101.59,3.92862463]
[1769994567820,21.87305045,101.65,101.6,3.92862463]
[1769994568542,12.03537215,101.63,101.6,3.92862463]
[1769994568720,12.03537215,101.63,101.59,9.84323119]
[1769994569122,12.03537215,101.62,101.59,13.77185582]
[1769994569352,12.03537215,101.61,101.57,3.92862463]
[1769994569523,12.03537215,101.61,101.55,36.65236239]
[1769994569524,12.03537215,101.59,101.55,3.92862463]
[1769994569929,12.03537215,101.59,101.56,13.77490921]
[1769994570132,12.03537215,101.58,101.55,3.92862463]
[1769994570443,12.03537215,101.58,101.56,9.84638833]
[1769994570622,12.03537215,101.6,101.56,13.77501296]
[1769994571569,27.32,101.64,101.59,3.92862463]
[1769994571722,12.03537215,101.64,101.6,3.92862463]
[1769994571921,12.03537215,101.64,101.58,12.03537215]
[1769994571922,12.03537215,101.62,101.58,3.92862463]
[1769994572653,12.03537215,101.62,101.58,13.77233253]
[1769994573041,12.03537215,101.63,101.59,3.92862463]
[1769994573243,12.03537215,101.64,101.6,3.92862463]
[1769994573421,21.87344796,101.65,101.6,3.92862463]
[1769994573628,12.03537215,101.66,101.61,3.92862463]
[1769994573831,21.87154873,101.67,101.62,3.92862463]
[1769994574038,12.03537215,101.65,101.62,3.92862463]
[1769994574232,12.03537215,101.65,101.58,34.45485182]
[1769994574233,12.03537215,101.63,101.58,38.38347645]
[1769994574556,12.10979985,101.63,101.59,3.92862463]
[1769994574847,12.10979985,101.63,101.59,13.77125715]
[1769994575156,12.10979985,101.63,101.59,38.37997848]
[1769994575538,12.10979985,101.62,101.59,9.84263252]
[1769994575728,12.10979985,101.62,101.57,36.72155695]
[1769994575729,12.10979985,101.61,101.58,13.77294854]
[1769994576253,12.10979985,101.63,101.59,13.77189852]
[1769994577141,12.10979985,101.62,101.59,13.77189852]
[1769994577862,12.10979985,101.62,101.59,3.92862463]
[1769994578168,12.10979985,101.63,101.59,13.77182867]
[1769994578342,12.10979985,101.64,101.6,3.91020351]
[1769994578657,25.81071535,101.68,101.62,16.02000336]
[1769994578843,12.10979985,101.66,101.62,3.91020351]
[1769994579037,12.10979985,101.64,101.6,3.91020351]
[1769994579237,12.10979985,101.63,101.6,13.75264434]
[1769994579454,12.10979985,101.62,101.59,9.8432976]
[1769994579659,12.10979985,101.62,101.59,13.75350111]
[1769994580243,12.10979985,101.62,101.59,9.8432976]
[1769994580550,12.10979985,101.61,101.58,3.91020351]
[1769994580855,12.10979985,101.61,101.58,13.75453595]
[1769994581442,12.10979985,101.61,101.58,3.91020351]
[1769994581637,12.10979985,101.6,101.57,9.84537582]
[1769994581851,12.10979985,101.61,101.58,3.91020351]
[1769994582241,9.8408431,101.62,101.58,13.75461064]
[1769994582242,12.10979985,101.62,101.58,13.75461064]
[1769994582446,12.10979985,101.59,101.56,9.84597527]
[1769994582665,12.10979985,101.58,101.55,13.75728422]
[1769994582965,12.10979985,101.57,101.54,13.75824518]
[1769994583671,12.10979985,101.55,101.51,9.95068634]
[1769994583836,3.86567809,101.56,101.51,9.95068634]
[1769994583837,12.10979985,101.56,101.53,9.84875036]
[1769994584164,12.10979985,101.55,101.51,4.01020351]
[1769994584337,15.97547794,101.57,101.52,16.02000336]
[1769994584542,12.10979985,101.57,101.53,3.91020351]
[1769994584782,12.10979985,101.58,101.54,13.75845536]
[1769994585070,12.10979985,101.59,101.55,3.91020351]
[1769994585456,12.10979985,101.57,101.53,13.7591144]
[1769994586052,12.10979985,101.56,101.52,13.79092807]
[1769994586245,12.10979985,101.55,101.52,13.79092807]
[1769994586564,12.10979985,101.55,101.52,3.94120552]
[1769994586736,3.86567809,101.57,101.52,3.94120552]
[1769994586941,12.10979985,101.55,101.52,13.79088977]
[1769994587462,12.10979985,101.54,101.51,0.1]
[1769994587666,12.10979985,101.55,101.51,4.04120552]
[1769994587845,16.04024464,101.56,101.51,16.15100537]
[1769994588158,21.95436177,101.58,101.54,3.94120552]
[1769994588457,12.10979985,101.57,101.53,3.94120552]
[1769994588781,12.10979985,101.55,101.51,4.04120552]
[1769994589165,12.10979985,101.56,101.52,3.94120552]
[1769994589362,3.93044479,101.6,101.54,3.94120552]
[1769994589567,12.10979985,101.6,101.56,3.94120552]
[1769994589859,16.04024464,101.61,101.56,16.05100537]
[1769994590266,31.27044479,101.64,101.58,3.94120552]
[1769994590443,12.10979985,101.63,101.59,3.94120552]
[1769994590651,12.10979985,101.62,101.58,3.94120552]
[1769994590961,12.10979985,101.61,101.58,3.94120552]
[1769994591142,12.10979985,101.61,101.57,3.94120552]
[1769994591338,9.84215399,101.61,101.57,3.94120552]
[1769994591544,12.10979985,101.6,101.56,9.84597183]
[1769994591766,3.93044479,101.63,101.58,3.94120552]
[1769994592070,12.10979985,101.62,101.58,3.94120552]
[1769994592643,16.04024464,101.63,101.58,16.05100537]
[1769994592966,21.94884904,101.64,101.59,16.05100537]
[1769994593153,12.10979985,101.64,101.6,16.05100537]
[1769994593347,27.34,101.65,101.62,3.94120552]
[1769994593766,53.21838233,101.65,101.6,40.65680056]
[1769994593946,53.21838233,101.65,101.58,24.60924213]
[1769994593947,12.10979985,101.62,101.58,24.60924213]
[1769994594141,12.10979985,101.62,101.59,9.84322529]
[1769994594372,12.10979985,101.63,101.59,13.78443081]
[1769994594549,12.10979985,101.61,101.58,9.84398273]
[1769994594862,12.10979985,101.6,101.58,9.84398273]
[1769994595162,12.10979985,101.59,101.55,3.94120552]
[1769994595367,12.10979985,101.59,101.56,9.84593213]
[1769994595663,12.10979985,101.57,101.55,3.94120552]
[1769994595855,12.10979985,101.58,101.55,13.78849113]
[1769994596052,12.10979985,101.6,101.56,3.94120552]
[1769994596454,12.10979985,101.61,101.57,3.94120552]
[1769994596856,12.10979985,101.63,101.59,3.94120552]
[1769994597086,12.10979985,101.64,101.6,3.94120552]
[1769994597364,37.17816696,101.65,101.61,21.95135087]
[1769994597365,27.34,101.65,101.61,21.95135087]
[1769994597565,12.10979985,101.64,101.6,13.7834887]
[1769994597767,12.10979985,101.64,101.6,13.78366263]
[1769994598366,12.10979985,101.62,101.58,3.94120552]
[1769994598554,12.10979985,101.61,101.56,3.94120552]
[1769994598740,12.10979985,101.6,101.57,9.84489889]
[1769994598944,12.10979985,101.61,101.58,9.84435425]
[1769994599862,12.10979985,101.62,101.58,13.78555977]
[1769994600067,16.04024464,101.61,101.56,3.94120552]
[1769994600273,12.10979985,101.58,101.55,9.84699352]
[1769994600452,12.10979985,101.6,101.56,3.94120552]
[1769994600844,12.10979985,101.58,101.55,13.78783911]
[1769994601074,12.10979985,101.57,101.54,13.78903533]
[1769994601453,12.10979985,101.55,101.52,9.84974668]
[1769994601647,12.10979985,101.53,101.51,9.95118564]
[1769994601868,3.93044479,101.58,101.52,3.94120552]
[1769994602169,12.10979985,101.61,101.57,3.94120552]
[1769994602755,3.93044479,101.62,101.58,12.10979985]
[1769994603068,12.10979985,101.6,101.56,3.94120552]
[1769994603268,12.10979985,101.59,101.54,12.10979985]
[1769994603470,12.10979985,101.57,101.53,9.84835376]
[1769994603790,12.10979985,101.56,101.54,9.8482152]
[1769994603965,12.10979985,101.59,101.54,25.89922057]
[1769994604273,9.83961428,101.63,101.58,3.94120552]
[1769994604454,13.7692887,101.64,101.58,16.05100537]
[1769994604765,12.10979985,101.62,101.58,3.94120552]
[1769994605066,12.10979985,101.61,101.57,3.94120552]
[1769994605272,16.04024464,101.63,101.58,16.05100537]
[1769994605564,12.10979985,101.61,101.58,3.94120552]
[1769994606167,21.95037155,101.63,101.59,3.94120552]
[1769994606360,12.10979985,101.64,101.6,3.94120552]
[1769994607169,12.10979985,101.63,101.58,50.50600247]
[1769994607347,12.10979985,101.61,101.58,9.84385318]
[1769994607775,12.10979985,101.6,101.57,13.79622181]
[1769994608269,12.10979985,101.61,101.57,38.4097888]
[1769994608472,12.10979985,101.61,101.56,12.10979985]
[1769994608473,12.10979985,101.6,101.56,9.84603133]
[1769994608681,4.03842103,101.56,101.51,0.1]
[1769994608973,24.2195997,101.57,101.49,3.95079502]
[1769994608974,12.10979985,101.52,101.49,13.80341568]
[1769994609271,12.10979985,101.56,101.52,3.95079502]
[1769994609464,12.10979985,101.55,101.52,3.95079502]
[1769994609775,21.95892652,101.54,101.5,13.8024846]
[1769994609971,12.10979985,101.55,101.51,3.95079502]
[1769994610273,12.10979985,101.53,101.5,9.85168958]
[1769994610570,12.10979985,101.54,101.5,13.8024846]
[1769994610778,12.10979985,101.53,101.5,13.8024846]
[1769994611260,12.10979985,101.52,101.49,9.85278686]
[1769994611459,12.10979985,101.5,101.47,9.95452105]
[1769994611660,12.10979985,101.5,101.47,9.95471395]
[1769994611862,4.03842103,101.53,101.48,3.95079502]
[1769994612059,12.10979985,101.52,101.48,3.95079502]
[1769994612257,12.10979985,101.5,101.47,0.1]
[1769994612463,9.84930851,101.53,101.47,0.1]
[1769994612464,12.10979985,101.49,101.47,0.1]
[1769994612648,12.10979985,101.48,101.44,13.80846267]
[1769994612852,12.10979985,101.47,101.44,13.80846267]
[1769994613051,12.10979985,101.48,101.45,9.85680956]
[1769994613251,12.10979985,101.48,101.45,13.80760458]
[1769994613454,12.10979985,101.51,101.47,3.95079502]
[1769994613673,12.10979985,101.51,101.48,9.85415845]
[1769994613864,12.10979985,101.52,101.48,13.80495347]
[1769994614370,12.10979985,101.51,101.47,9.85472937]
[1769994614670,27.34,101.54,101.48,3.95079502]
[1769994614671,12.10979985,101.52,101.48,3.95079502]
[1769994614882,12.10979985,101.53,101.49,3.95079502]
[1769994615095,12.10979985,101.54,101.5,3.95079502]
[1769994615274,9.847624,101.55,101.47,38.44334837]
[1769994615275,12.10979985,101.51,101.47,38.44334837]
[1769994615472,12.10979985,101.53,101.48,12.10979985]
[1769994615697,12.10979985,101.52,101.49,3.95079502]
[1769994615874,12.10979985,101.52,101.49,13.80343581]
[1769994616074,12.10979985,101.52,101.49,3.95079502]
[1769994616274,12.10979985,101.54,101.49,13.8038446]
[1769994616495,21.95716567,101.55,101.51,3.95079502]
[1769994616684,12.10979985,101.55,101.51,3.95079502]
[1769994617193,39.46979985,101.56,101.51,3.95079502]
[1769994617570,12.10979985,101.55,101.51,3.95079502]
[1769994617991,39.46979985,101.56,101.53,3.95079502]
[1769994618203,12.10979985,101.58,101.54,3.95079502]
[1769994619300,12.10979985,101.6,101.56,3.95079502]
[1769994619606,12.10979985,101.59,101.56,3.95079502]
[1769994619780,12.10979985,101.6,101.56,3.95079502]
[1769994619978,12.10979985,101.6,101.56,13.79665437]
[1769994620284,12.10979985,101.59,101.56,9.84634255]
[1769994620490,12.10979985,101.58,101.54,9.84763859]
[1769994620684,12.10979985,101.57,101.54,9.84763859]
[1769994620884,12.10979985,101.55,101.52,24.62432301]
[1769994621085,12.10979985,101.55,101.52,9.84988481]
[1769994621313,12.10979985,101.55,101.52,13.80067983]
[1769994621601,12.10979985,101.55,100.17,1659.81706375]
[1769994621602,12.10979985,101.53,101.48,3.95079502]
[1769994621801,12.10979985,101.52,101.48,3.95079502]
[1769994621984,12.10979985,101.53,101.49,13.80354481]
[1769994622185,12.10979985,101.53,101.49,38.43651357]
[1769994622380,12.10979985,101.53,101.49,13.80354481]
[1769994622682,12.10979985,101.51,101.47,13.80532552]
[1769994622881,12.10979985,101.5,101.47,9.85478684]
[1769994623083,12.10979985,101.52,101.48,13.80494293]
[1769994624184,12.10979985,101.53,101.49,3.95079502]
[1769994624392,12.10979985,101.52,101.49,3.95079502]
[1769994624985,12.10979985,101.52,101.48,34.48954404]
[1769994625184,12.10979985,101.51,101.48,9.85414791]
[1769994625398,12.10979985,101.51,101.48,9.85391989]
[1769994625601,12.10979985,101.52,101.48,13.80471491]
[1769994625903,12.10979985,101.51,101.48,9.85391989]
[1769994626205,12.10979985,101.52,101.48,13.80471491]
[1769994626408,12.10979985,101.51,101.48,9.85391989]
[1769994626713,12.10979985,101.49,101.45,28.59153925]
[1769994627005,12.10979985,101.52,101.48,3.95079502]
[1769994627401,12.10979985,101.51,101.48,3.95079502]
[1769994627595,12.10979985,101.52,101.48,3.95079502]
[1769994627801,12.10979985,101.54,101.49,3.95079502]
[1769994627989,12.10979985,101.53,101.49,3.95079502]
[1769994628192,12.10979985,101.52,101.48,13.80439203]
[1769994628809,12.10979985,101.51,101.48,13.80439203]
[1769994629107,12.10979985,101.52,101.49,3.95079502]
[1769994629604,12.10979985,101.51,101.47,13.80548099]
[1769994629784,12.10979985,101.51,101.48,9.8541125]
[1769994629984,12.10979985,101.51,101.48,13.80490752]
[1769994630408,12.10979985,101.51,101.47,24.63725918]
[1769994630409,12.10979985,101.5,101.47,13.80545071]
[1769994630603,12.10979985,101.5,101.45,86.03521625]
[1769994630604,12.10979985,101.49,101.46,9.85541927]
[1769994630820,12.10979985,101.48,101.44,3.95079502]
[1769994631110,12.10979985,101.51,101.48,13.80495347]
[1769994631309,12.10979985,101.52,101.49,3.95079502]
[1769994631522,12.10979985,101.52,101.48,9.85415845]
[1769994631813,12.10979985,101.5,101.48,9.85415845]
[1769994632007,12.10979985,101.51,101.48,9.85415845]
[1769994632201,4.03842103,101.53,101.43,0.1]
[1769994632402,12.10979985,101.5,101.44,3.95079502]
[1769994632715,12.10979985,101.51,101.46,16.06059487]
[1769994632887,12.10979985,101.51,101.47,3.95079502]
[1769994633088,12.10979985,101.5,101.45,3.95079502]
[1769994633288,12.10979985,101.5,101.43,0.1]
[1769994633289,4.03842103,101.47,101.43,0.1]
[1769994633588,12.10979985,101.44,101.43,0.1]
[1769994633807,4.03842103,101.47,101.43,4.05079502]
[1769994633808,12.10979985,101.47,101.43,4.05079502]
[1769994633984,4.03842103,101.48,101.43,4.05079502]
[1769994634189,4.32274417,101.5,101.44,3.95079502]
[1769994634407,12.14446493,101.48,101.44,13.80810255]
[1769994634603,12.14446493,101.5,101.46,3.95079502]
[1769994634797,21.9960828,101.51,101.46,16.09525995]
[1769994634999,12.14446493,101.48,101.44,34.50241794]
[1769994635201,12.14446493,101.48,101.45,3.95079502]
[1769994636212,12.14446493,101.48,101.45,13.80740417]
[1769994636400,12.14446493,101.47,101.44,9.85748353]
[1769994636605,12.14446493,101.47,101.45,9.85694323]
[1769994636805,12.14446493,101.51,101.46,3.95079502]
[1769994637006,12.14446493,101.53,101.49,3.95079502]
[1769994637412,12.14446493,101.52,101.47,3.95079502]
[1769994637715,12.14446493,101.48,101.45,13.72313628]
[1769994638616,12.14446493,101.49,101.45,13.72313628]
[1769994638804,12.14446493,101.48,101.45,13.72313628]
[1769994639114,12.14446493,101.47,101.45,13.72313628]
[1769994639319,12.14446493,101.48,101.46,3.86619305]
[1769994639812,15.86716006,101.47,101.43,0.1]
[1769994640013,3.72269513,101.49,101.43,13.82520912]
[1769994640214,12.14446493,101.45,101.43,13.82520912]
[1769994640417,9.95159096,101.45,101.43,13.82520912]
[1769994640909,12.14446493,101.45,101.44,3.86619305]
[1769994641115,12.14446493,101.46,101.44,3.86619305]
[1769994641620,34.48683416,101.49,101.43,0.1]
[1769994641621,12.14446493,101.45,101.43,0.1]
[1769994641824,12.14446493,101.44,101.43,0.1]
[1769994642595,12.14446493,101.45,101.43,0.1]
[1769994642798,12.14446493,101.44,101.43,0.1]
[1769994643206,12.14446493,101.44,101.4,9.86132951]
[1769994643495,12.14446493,101.41,101.39,3.86619305]
[1769994643734,12.14446493,101.41,101.39,13.72860692]
[1769994643898,12.14446493,101.42,101.4,9.86193293]
[1769994644098,3.72269513,101.45,101.4,3.86619305]
[1769994644099,12.14446493,101.43,101.4,3.86619305]
[1769994644302,12.14446493,101.43,101.4,38.38241055]
[1769994644622,12.14446493,101.44,101.41,3.86619305]
[1769994644831,12.14446493,101.43,101.4,38.38241055]
[1769994645120,3.72269513,101.4,101.35,7.59507874]
[1769994645420,12.14446493,101.36,101.33,9.96870356]
[1769994645728,12.14446493,101.35,101.33,0.1]
[1769994646422,12.14446493,101.34,101.33,0.1]
[1769994646613,12.14446493,101.35,101.33,0.1]
[1769994646815,12.14446493,101.34,101.33,0.1]
[1769994647206,12.14446493,101.34,101.27,14.96982356]
[1769994647207,3.89378308,101.33,101.27,14.96982356]
[1769994647426,4.05867748,101.35,101.28,22.01798185]
[1769994647623,4.05867748,101.35,101.29,12.14446493]
[1769994647624,4.05867748,101.33,101.29,12.14446493]
[1769994647828,16.20314241,101.33,101.27,34.56074874]
[1769994648014,4.05867748,101.33,101.27,34.56074874]
[1769994648217,0.14216157,101.36,101.23,59.26767632]
[1769994648218,4.05867748,101.31,101.23,59.26767632]
[1769994648418,4.05867748,101.31,101.23,34.5747308]
[1769994649016,16.20314241,101.3,101.24,12.14446493]
[1769994649538,4.05867748,101.29,101.24,12.14446493]
[1769994649713,16.20314241,101.3,101.25,12.14446493]
[1769994649912,12.14446493,101.28,101.23,46.71919573]
[1769994650331,16.20314241,101.28,101.23,36.84070122]
[1769994650528,16.20314241,101.27,101.22,9.87947046]
[1769994650728,16.20314241,101.23,101.18,14.98169631]
[1769994650914,12.14446493,101.22,101.18,14.98191353]
[1769994651114,0.28432314,101.27,101.18,14.98191353]
[1769994651115,12.14446493,101.21,101.18,5.09891791]
[1769994651424,38.83306115,101.28,101.17,4.20053744]
[1769994651625,12.14446493,101.22,101.18,9.88329403]
[1769994652133,12.14446493,101.21,101.18,9.88329403]
[1769994652319,9.87837535,101.24,101.18,9.88329403]
[1769994652524,12.14446493,101.19,101.17,0.3174703]
[1769994652726,12.14446493,101.2,101.17,10.20175798]
[1769994652916,12.14446493,101.19,101.17,0.3174703]
[1769994653319,12.14446493,101.21,101.17,38.79576255]
[1769994653929,12.14446493,101.2,101.17,38.79576255]
[1769994654229,12.14446493,101.18,101.17,0.3174703]
[1769994654644,12.14446493,101.2,101.17,10.20182336]
[1769994654928,12.14446493,101.22,101.17,50.9402381]
[1769994655133,16.03824801,101.23,101.17,50.9402381]
[1769994655436,16.03824801,101.23,101.18,16.02753207]
[1769994655732,12.14446493,101.2,101.17,10.20182336]
[1769994656118,12.14446493,101.19,101.17,10.20182336]
[1769994656314,16.03824801,101.18,101.13,2.47215037]
[1769994656520,12.14446493,101.17,101.14,9.88728495]
[1769994656729,12.14446493,101.18,101.14,13.77035209]
[1769994657033,12.14446493,101.18,101.14,38.48856446]
[1769994657232,12.14446493,101.19,101.14,46.74996225]
[1769994657430,12.14446493,101.2,101.14,46.74996225]
[1769994657938,37.2987508,101.23,101.14,34.60549732]
[1769994657939,16.19272958,101.19,101.14,34.60549732]
[1769994658317,12.14446493,101.17,101.14,34.60549732]
[1769994658515,16.19272958,101.2,101.14,46.74996225]
[1769994658734,12.14446493,101.19,101.14,46.74996225]
[1769994658940,4.04826465,101.2,101.14,46.74996225]
[1769994659124,16.19272958,101.2,101.15,12.14446493]
[1769994659515,16.19272958,101.2,101.14,34.60549732]
[1769994659926,16.19272958,101.2,101.14,46.74996225]
[1769994660120,12.14446493,101.19,101.14,96.186387]
[1769994660522,16.19272958,101.2,101.14,84.04192207]
[1769994660840,4.04826465,101.17,101.14,9.88728495]
[1769994661039,4.04826465,101.16,101.14,9.88728495]
[1769994661344,12.14446493,101.17,101.14,34.60549732]
[1769994661523,16.19272958,101.17,101.14,9.88728495]
[1769994661836,12.14446493,101.15,101.13,2.47215037]
[1769994662137,12.14446493,101.17,101.14,9.88728495]
[1769994662339,27.42,101.22,101.14,13.77035209]
[1769994662536,12.14446493,101.18,101.14,34.60549732]
[1769994662839,12.14446493,101.16,101.13,12.36003073]
[1769994663040,12.14446493,101.15,101.13,2.47215037]
[1769994663346,12.14446493,101.15,101.07,81.16327567]
[1769994663347,12.14446493,101.14,101.09,2.47079703]
[1769994663553,12.14446493,101.13,101.1,9.89119683]
[1769994663731,0.28432314,101.18,101.1,9.89119683]
[1769994663926,4.41743242,101.18,101.1,34.61918891]
[1769994664124,12.14446493,101.13,101.1,34.61918891]
[1769994664324,12.14446493,101.12,101.1,9.89119683]
[1769994664526,12.14446493,101.11,101.08,34.62593422]
[1769994664842,12.14446493,101.15,101.1,14.61035023]
[1769994665024,9.88142292,101.2,101.13,12.14446493]
[1769994665025,3.89378308,101.18,101.13,12.14446493]
[1769994665225,16.03824801,101.17,101.11,2.4658853]
[1769994665421,12.14446493,101.16,101.12,12.14446493]
[1769994665743,16.03824801,101.15,101.1,14.6079366]
[1769994665945,12.14446493,101.14,101.09,14.6079366]
[1769994666147,12.14446493,101.13,101.09,2.46347167]
[1769994666344,12.14446493,101.13,101.08,74.21039915]
[1769994666639,3.89378308,101.13,101.08,46.77039915]
[1769994666847,3.89378308,101.13,101.09,12.14446493]
[1769994667162,16.03824801,101.12,101.08,46.77039915]
[1769994667443,3.89378308,101.12,101.08,46.77039915]
[1769994667626,16.03824801,101.12,101.08,46.77039915]
[1769994668038,3.89378308,101.12,101.08,46.77039915]
[1769994668424,15.89713015,101.16,101.1,2.4534265]
[1769994668736,15.89713015,101.16,101.12,12.14446493]
[1769994669052,3.75266522,101.15,101.12,12.14446493]
[1769994669250,3.75266522,101.17,101.13,12.14446493]
[1769994669448,57.29368589,101.26,101.15,12.14446493]
[1769994669449,13.63559249,101.19,101.15,12.14446493]
[1769994669752,3.75266522,101.18,101.15,12.14446493]
[1769994670252,3.75266522,101.18,101.14,12.14446493]
[1769994670430,3.75266522,101.15,101.11,34.61530377]
[1769994670748,3.75266522,101.14,101.11,9.88975734]
[1769994671048,3.89482679,101.22,101.13,14.59305862]
[1769994671240,3.75266522,101.18,101.14,12.14446493]
[1769994671425,3.75266522,101.14,101.09,12.14446493]
[1769994671625,15.89713015,101.11,101.08,9.89257067]
[1769994671827,15.89713015,101.12,101.09,9.89139289]
[1769994672140,16.32139015,101.14,101.1,9.89085486]